Cogmind - Beta 10 @@@ ROGUE MODE // 2020.09.19 @ 14:08:57 Player: Palikka Result: Destroyed by B-99 Colossus with Linear Accelerator Performance ------------- Evolutions (9) 4500 Regions Visited (13) 2600 Robots Destroyed (11) 55 Value Destroyed (398) 398 Prototype IDs (4) 80 Alien Tech Used (0) 0 Bonus (5711) 5711 TOTAL SCORE: 13344 Bonus ------- Pacifist 5711 Cogmind --------- Core Integrity 0/1600 Matter 258/300 Energy 99/100 System Corruption 1% Temperature Cool (0) Movement Core (50) Location -1/Access Parts ------- > --- POWER (2) -------- (None) > --- PROPULSION (7) --- (None) > --- UTILITY (14) ----- Visual Processing Unit Advanced Signal Interpreter Advanced Signal Interpreter Advanced Signal Interpreter Improved Terrain Scan Processor Advanced Terrain Scan Processor > --- WEAPON (2) ------- (None) > --- INVENTORY (4) ---- Quantum Reactor HERF Cannon Peak State ------------ > --- POWER ------------ Antimatter Reactor Light Quantum Reactor > --- PROPULSION ------- Improved VTOL Module Improved VTOL Module Improved VTOL Module Cooled VTOL Module Field Propulsion Drive Field Propulsion Drive > --- UTILITY ---------- Visual Processing Unit Advanced Signal Interpreter Advanced Signal Interpreter Improved Terrain Scan Processor Improved Terrain Scan Processor Advanced Terrain Scan Processor 0b10 Decoder Chip [Looter] Experimental Propulsion Shielding Experimental Propulsion Shielding Experimental Propulsion Shielding Layered Light Armor Plating Improved System Shield > --- WEAPON ----------- Force Lance > --- INVENTORY -------- Advanced Cooling System Heavy Missile Launcher [Rating: 103] Favorites ----------- Power Antimatter Reactor Engine Light Ion Engine Power Core Light Nuclear Core Reactor Antimatter Reactor Propulsion Improved VTOL Module Treads Advanced Heavy Siege Treads Flight Unit Improved VTOL Module Utility Advanced Signal Interpreter Device Advanced Sensor Array Storage Small Storage Unit Processor Advanced Signal Interpreter Hackware Improved System Shield Protection Experimental Propulsion Shielding Weapon Force Lance Energy Gun Pulse Rifle Ballistic Gun Light Assault Rifle Launcher Heavy Missile Launcher Piercing Weapon Force Lance Build | -11 -10 -9 -8 -7 -6 -5 -4 -4 -4 -3 -2 -2 -1 ------- Run | Scr Mat Mat Mat Fac Fac Fac Fac Upp Upp Res Res Tes Acc Slots Evolved 18 | . . 2 2 2 2 2 2 . . 2 2 . 2 Power 1 | . . . . . . . 1 . . . . . . Propulsion 5 | . . 1 1 1 . . . . . 1 . . 1 Utility 12 | . . 1 1 1 2 2 1 . . 1 2 . 1 Weapon . | . . . . . . . . . . . . . . Parts Attached 51 | 2 . 1 8 4 6 . 7 2 . 1 6 2 12 Power 10 | . . . 2 1 1 . 1 . . . 2 1 2 Engine 4 | . . . 1 1 1 . . . . . . . 1 Core 1 | . . . 1 . . . . . . . . . . Reactor 5 | . . . . . . . 1 . . . 2 1 1 Propulsion 14 | . . . 3 1 2 . 2 . . . 2 1 3 Treads 1 | . . . . . . . . . . . . . 1 Leg . | . . . . . . . . . . . . . . Wheel . | . . . . . . . . . . . . . . Hover . | . . . . . . . . . . . . . . Flight 13 | . . . 3 1 2 . 2 . . . 2 1 2 Utility 18 | . . 1 3 1 3 . 3 2 . 1 1 . 3 Device 3 | . . . 1 . 1 . . . . . . . 1 Storage 1 | . . . 1 . . . . . . . . . . Processor 8 | . . 1 1 1 2 . 1 1 . . . . 1 Hackware 1 | . . . . . . . . . . 1 . . . Protection 5 | . . . . . . . 2 1 . . 1 . 1 Artifact . | . . . . . . . . . . . . . . Weapon 9 | 2 . . . 1 . . 1 . . . 1 . 4 Energy Gun 1 | . . . . 1 . . . . . . . . . Energy Cannon . | . . . . . . . . . . . . . . Ballistic Gun 2 | 2 . . . . . . . . . . . . . Ballistic Cannon . | . . . . . . . . . . . . . . Launcher 2 | . . . . . . . . . . . 1 . 1 Special Weapon . | . . . . . . . . . . . . . . Impact Weapon . | . . . . . . . . . . . . . . Slashing Weapon . | . . . . . . . . . . . . . . Piercing Weapon 4 | . . . . . . . 1 . . . . . 3 Special Melee Weapon . | . . . . . . . . . . . . . . Unidentified Prototypes 4 | . . . 1 . 1 . 1 . . . . 1 . Parts Lost 32 | . . . 4 1 4 1 4 . . . 4 1 13 Power 6 | . . . 1 1 . 1 . . . . 2 . 1 Propulsion 11 | . . . 1 . 2 . 2 . . . 1 . 5 Utility 10 | . . . . . 1 . 2 . . . 1 1 5 Weapon 5 | . . . 2 . 1 . . . . . . . 2 Highest Loss Streak 6 | . . . 3 1 4 5 2 . . . 3 1 6 Average Slot Usage (%) 62 | . 28 29 68 74 79 70 61 76 84 76 80 69 47 Reactor 1 | . . . . . . . 2 5 5 4 3 2 . Flight 17 | . . . 22 25 27 23 18 21 21 19 24 21 10 Device 1 | . . . 6 7 4 5 3 . . . . . . Storage 2 | . . . 7 7 6 5 4 . . . . . . Processor 25 | . . 7 12 21 29 29 26 31 36 33 29 26 26 Hackware 1 | . . . . . . . . . . . 4 4 3 Protection 5 | . . . . . . . 5 12 15 14 13 11 4 Ballistic Gun 2 | . 28 22 12 . . . . . . . . . . Piercing Weapon 1 | . . . . . . . . 5 5 4 4 4 . Naked Turns . | . . . . . . . . . . . . . . Heaviest Build 40 | 2 2 2 10 18 18 14 24 25 25 25 40 29 35 Greatest Support 41 | 3 3 3 12 19 19 17 26 26 26 26 41 29 35 Greatest Overweight (x) 1 | . . . . . . . . . . . . . 1 Average Overweight (x) . | . . . . . . . . . . . . . . Largest Inventory Capacity 6 | 4 4 4 6 6 6 6 6 4 4 4 4 4 4 Average Capacity 4 | 4 4 4 5 6 6 6 5 4 4 4 4 4 4 Most Carried 6 | 4 4 4 6 6 6 5 6 4 4 4 4 3 4 Average Carried 4 | 3 4 4 5 5 5 5 5 3 4 4 2 3 3 Final Capacity 6 | 4 4 4 6 6 6 6 4 4 4 4 4 4 4 Final Carried 5 | 4 4 4 5 5 5 5 4 4 4 4 3 3 2 Class Distribution -------------------- 45% | Sprinter 35% | Mutant 19% | Scout Dominant Class ---------------- Mutant | -10/Materials Mutant | -9/Materials Sprinter | -8/Materials Sprinter | -7/Factory Scout | -6/Factory Scout | -5/Factory Scout | -4/Factory Sprinter | -4/Upper Caves Sprinter | -4/Upper Caves Sprinter | -3/Research Sprinter | -2/Research Sprinter | -2/Testing Mutant | -1/Access Resources | -11 -10 -9 -8 -7 -6 -5 -4 -4 -4 -3 -2 -2 -1 ----------- Run | Scr Mat Mat Mat Fac Fac Fac Fac Upp Upp Res Res Tes Acc Matter Collected 648 | 178 . . 132 . 75 . . 70 10 . 55 . 128 Remotely . | . . . . . . . . . . . . . . Salvage Created 313 | . . . . . . . . . . . 52 . 261 Parts 21 | . . . . . . . . . . . 4 . 17 Haulers Intercepted . | . . . . . . . . . . . . . . Recyclers Shooed . | . . . . . . . . . . . . . . Parts Field Recycled . | . . . . . . . . . . . . . . Retrieved Matter . | . . . . . . . . . . . . . . Parts Self-Destructed . | . . . . . . . . . . . . . . Prevented . | . . . . . . . . . . . . . . Kills | -11 -10 -9 -8 -7 -6 -5 -4 -4 -4 -3 -2 -2 -1 ------- Run | Scr Mat Mat Mat Fac Fac Fac Fac Upp Upp Res Res Tes Acc Combat Hostiles Destroyed 9 | . . . . . . . . . . . 4 . 5 AOE 9 | . . . . . . . . . . . 4 . 5 Classes Destroyed 3 | . . . . . . . . . . . 1 . 2 Worker 1 | . . . . . . . . . . . . . 1 Recycler 1 | . . . . . . . . . . . . . 1 Swarmer 9 | . . . . . . . . . . . 4 . 5 Best Kill Streak 6 | . . . . . . . . . . . 4 . 6 Combat Bots Only 5 | . . . . . . . . . . . 4 . 5 Max Kills in Single Turn 4 | . . . . . . . . . . . 2 . 4 Gunslinging . | . . . . . . . . . . . . . . Exploded 4 | . . . . . . . . . . . 2 . 4 Melee . | . . . . . . . . . . . . . . Uniques/NPCs Destroyed . | . . . . . . . . . . . . . . Combat | -11 -10 -9 -8 -7 -6 -5 -4 -4 -4 -3 -2 -2 -1 -------- Run | Scr Mat Mat Mat Fac Fac Fac Fac Upp Upp Res Res Tes Acc Damage Taken 4989 | . . 28 413 103 479 23 394 . 17 55 877 42 2558 Core 2338 | . . 13 147 . 88 . 59 . . 28 342 23 1638 Absorbed by Shields 41 | . . . . . . . . . . . . . 41 Core Remaining (%) 92 | 100 100 96 73 100 89 100 . . 94 97 . 74 . Volleys Fired 7 | . . . . 1 . . . . . . 3 . 3 Largest 1 | . . . . 1 . . . . . . 1 . 1 Hottest 63 | . . . . 63 . . . . . . 39 . 39 Shots Fired 7 | . . . . 1 . . . . . . 3 . 3 Gun 1 | . . . . 1 . . . . . . . . . Cannon . | . . . . . . . . . . . . . . Launcher 6 | . . . . . . . . . . . 3 . 3 Special . | . . . . . . . . . . . . . . Kinetic . | . . . . . . . . . . . . . . Thermal 1 | . . . . 1 . . . . . . . . . Explosive 6 | . . . . . . . . . . . 3 . 3 Electromagnetic . | . . . . . . . . . . . . . . Robot Hit Streak 1 | . . . . . . . . . . . 1 . . Robot Miss Streak 1 | . . . . 1 . . . . . . . . . Penetration Max . | . . . . . . . . . . . . . . Secondary Targets . | . . . . . . . . . . . . . . Shots Hit Robots 3 | . . . . . . . . . . . 1 . 2 Core Hits 18 | . . . . . . . . . . . 6 . 12 Critical Hits . | . . . . . . . . . . . . . . Critical Kills . | . . . . . . . . . . . . . . Critical Parts Destroyed . | . . . . . . . . . . . . . . Melee Attacks 23 | . . . . . . . 1 3 . 1 9 . 9 Impact . | . . . . . . . . . . . . . . Slashing . | . . . . . . . . . . . . . . Piercing 23 | . . . . . . . 1 3 . 1 9 . 9 Sneak Attacks 1 | . . . . . . . . . . . . . 1 Combat Hostiles . | . . . . . . . . . . . . . . Follow-up Attacks . | . . . . . . . . . . . . . . Damage Inflicted 1332 | . . . . 16 . . . . . . 488 . 828 Guns 16 | . . . . 16 . . . . . . . . . Cannons . | . . . . . . . . . . . . . . Explosions 1170 | . . . . . . . . . . . 488 . 682 Melee 146 | . . . . . . . . . . . . . 146 Ramming . | . . . . . . . . . . . . . . Kinetic . | . . . . . . . . . . . . . . Thermal 16 | . . . . 16 . . . . . . . . . Explosive 1170 | . . . . . . . . . . . 488 . 682 Electromagnetic . | . . . . . . . . . . . . . . Impact . | . . . . . . . . . . . . . . Slashing . | . . . . . . . . . . . . . . Piercing 146 | . . . . . . . . . . . . . 146 Highest Corruption 3 | . . . . . . . 3 3 3 . . . 1 Average Corruption 2 | . . . . . . . 2 3 3 . . . 1 Corruption Purged . | . . . . . . . . . . . . . . Effects 2 | . . . . . . . 2 . . . . . . Data Loss (minor) 2 | . . . . . . . 2 . . . . . . Overload Shots . | . . . . . . . . . . . . . . Overflow Damage 106 | . . . . . . . . . . . 41 . 65 Projectiles . | . . . . . . . . . . . . . . Explosions 58 | . . . . . . . . . . . 41 . 17 Melee 48 | . . . . . . . . . . . . . 48 Knockbacks . | . . . . . . . . . . . . . . Impact . | . . . . . . . . . . . . . . Kinetic . | . . . . . . . . . . . . . . Secondary . | . . . . . . . . . . . . . . Self-Inflicted Damage 18 | . . . . . . . . . . . . . 18 Shots 1 | . . . . . . . . . . . . . 1 Rammed . | . . . . . . . . . . . . . . Targets Rammed . | . . . . . . . . . . . . . . Kicked . | . . . . . . . . . . . . . . Crushed . | . . . . . . . . . . . . . . Highest Temperature 96 | . . . . 12 3 . . . . . 96 . 3 Average Temperature 41 | . . . . 9 3 . . . . . 48 . 3 Received Heat Transfer 435 | . . 9 153 9 120 9 18 . . . 18 . 99 Siege Activations . | . . . . . . . . . . . . . . Robots Corrupted . | . . . . . . . . . . . . . . Combat Hostiles . | . . . . . . . . . . . . . . Parts Fried . | . . . . . . . . . . . . . . Impact Corruptions . | . . . . . . . . . . . . . . Robots Melted . | . . . . . . . . . . . . . . Combat Hostiles . | . . . . . . . . . . . . . . Parts Melted . | . . . . . . . . . . . . . . Heat Transferred 37 | . . . . 37 . . . . . . . . . Parts Sabotaged . | . . . . . . . . . . . . . . Parts Stolen . | . . . . . . . . . . . . . . Parts Stripped . | . . . . . . . . . . . . . . Power Chain Reactions . | . . . . . . . . . . . . . . Missiles Intercepted . | . . . . . . . . . . . . . . Alert | -11 -10 -9 -8 -7 -6 -5 -4 -4 -4 -3 -2 -2 -1 ------- Run | Scr Mat Mat Mat Fac Fac Fac Fac Upp Upp Res Res Tes Acc Peak Influence 329 | . 15 78 87 75 106 76 159 . . 86 329 219 253 Initial 184 | . . 5 32 30 31 46 32 . . 54 48 184 131 Average 99 | . 8 38 51 54 67 58 50 . . 72 169 197 152 Maximum Alert Level 1 | . . . . . . . . . . . 1 1 1 Low Security (%) 95 | 100 100 100 100 100 100 100 100 . . 100 72 77 97 Level 1 4 | . . . . . . . . . . . 27 22 2 Level 2 . | . . . . . . . . . . . . . . Level 3 . | . . . . . . . . . . . . . . Level 4 . | . . . . . . . . . . . . . . Level 5 . | . . . . . . . . . . . . . . High Security . | . . . . . . . . . . . . . . Max Security . | . . . . . . . . . . . . . . Squads Dispatched 16 | . 1 . 3 1 2 . 2 . . . 2 1 4 Investigation 1 | . . . . . . . . . . . . . 1 Extermination 1 | . . . . . . . 1 . . . . . . Reinforcement 14 | . 1 . 3 1 2 . 1 . . . 2 1 3 Assault . | . . . . . . . . . . . . . . Garrison . | . . . . . . . . . . . . . . Intercept . | . . . . . . . . . . . . . . Construction Impeded 1 | . . . . . . . . . . . . . 1 Haulers Reinforced . | . . . . . . . . . . . . . . Stealth | -11 -10 -9 -8 -7 -6 -5 -4 -4 -4 -3 -2 -2 -1 --------- Run | Scr Mat Mat Mat Fac Fac Fac Fac Upp Upp Res Res Tes Acc Distress Signals 10 | . . . 3 . 1 . . . . 1 . . 5 Communications Jammed . | . . . . . . . . . . . . . . Distress Signals . | . . . . . . . . . . . . . . Times Spotted 208 | . 1 4 41 11 13 2 27 . 4 4 28 7 66 Peak Tracking Total 27 | . 1 4 27 7 10 2 16 . 4 4 12 6 24 Tactical Retreats 28 | . . . 3 2 2 . 4 . . . 3 . 14 Traps | -11 -10 -9 -8 -7 -6 -5 -4 -4 -4 -3 -2 -2 -1 ------- Run | Scr Mat Mat Mat Fac Fac Fac Fac Upp Upp Res Res Tes Acc Traps Triggered 6 | . . . . 1 . . 2 . . . . . 3 Indirectly . | . . . . . . . . . . . . . . Trap Hack Attempts . | . . . . . . . . . . . . . . Triggered . | . . . . . . . . . . . . . . Disarmed . | . . . . . . . . . . . . . . Reprogrammed . | . . . . . . . . . . . . . . Reused . | . . . . . . . . . . . . . . Traps Extracted . | . . . . . . . . . . . . . . Installed . | . . . . . . . . . . . . . . Triggered . | . . . . . . . . . . . . . . Machines | -11 -10 -9 -8 -7 -6 -5 -4 -4 -4 -3 -2 -2 -1 ---------- Run | Scr Mat Mat Mat Fac Fac Fac Fac Upp Upp Res Res Tes Acc Machines Disabled . | . . . . . . . . . . . . . . Max in Single Turn . | . . . . . . . . . . . . . . Machines Sabotaged . | . . . . . . . . . . . . . . Garrisons Compromised . | . . . . . . . . . . . . . . Overloaded Fab Kills . | . . . . . . . . . . . . . . Fab Network Shutdowns . | . . . . . . . . . . . . . . Hacking | -11 -10 -9 -8 -7 -6 -5 -4 -4 -4 -3 -2 -2 -1 --------- Run | Scr Mat Mat Mat Fac Fac Fac Fac Upp Upp Res Res Tes Acc Machines Accessed 15 | . 1 2 2 . . . 2 1 . 2 . . 5 Terminals 13 | . 1 2 2 . . . 2 . . 2 . . 4 Fabricators . | . . . . . . . . . . . . . . Repair Stations . | . . . . . . . . . . . . . . Recycling Units . | . . . . . . . . . . . . . . Scanalyzers . | . . . . . . . . . . . . . . Garrison Access 1 | . . . . . . . . . . . . . 1 Total Hacks 23 | . 1 6 4 . . . 2 1 . 2 . . 7 Successful 4 | . . 2 . . . . . 1 . . . . 1 Failed 19 | . 1 4 4 . . . 2 . . 2 . . 6 Catastrophic 4 | . . 1 1 . . . 1 . . . . . 1 Database Lockouts . | . . . . . . . . . . . . . . Manual 11 | . 1 4 1 . . . 2 . . 2 . . 1 Terminals 21 | . 1 6 4 . . . 2 . . 2 . . 6 Fabricators . | . . . . . . . . . . . . . . Repair Stations . | . . . . . . . . . . . . . . Recycling Units . | . . . . . . . . . . . . . . Scanalyzers . | . . . . . . . . . . . . . . Garrison Access 1 | . . . . . . . . . . . . . 1 Terminal Hacks 4 | . . 2 . . . . . 1 . . . . 1 Robot Analysis 1 | . . 1 . . . . . . . . . . . Open Door 1 | . . . . . . . . 1 . . . . . Level Access Points 1 | . . . . . . . . . . . . . 1 Branch Access Points 1 | . . 1 . . . . . . . . . . . Fabricator Hacks . | . . . . . . . . . . . . . . Repair Station Hacks . | . . . . . . . . . . . . . . Recycling Unit Hacks . | . . . . . . . . . . . . . . Scanalyzer . | . . . . . . . . . . . . . . Garrison Access Hacks . | . . . . . . . . . . . . . . Unauthorized Hacks . | . . . . . . . . . . . . . . Terminals . | . . . . . . . . . . . . . . Fabricators . | . . . . . . . . . . . . . . Repair Stations . | . . . . . . . . . . . . . . Recycling Units . | . . . . . . . . . . . . . . Scanalyzers . | . . . . . . . . . . . . . . Garrison Access . | . . . . . . . . . . . . . . Data Cores Recovered . | . . . . . . . . . . . . . . Used . | . . . . . . . . . . . . . . Hacking Detections 12 | . 1 2 2 . . . 2 . . 2 . . 3 Full Trace Events 1 | . . . . . . . . . . . . . 1 Feedback Events . | . . . . . . . . . . . . . . Feedback Blocked . | . . . . . . . . . . . . . . Robot Schematics Acquired . | . . . . . . . . . . . . . . Robots Built . | . . . . . . . . . . . . . . Matter . | . . . . . . . . . . . . . . Time . | . . . . . . . . . . . . . . Total Robot Build Rating . | . . . . . . . . . . . . . . Part Schematics Acquired . | . . . . . . . . . . . . . . Parts Built . | . . . . . . . . . . . . . . Matter . | . . . . . . . . . . . . . . Time . | . . . . . . . . . . . . . . Total Part Build Rating . | . . . . . . . . . . . . . . Parts Repaired . | . . . . . . . . . . . . . . Time . | . . . . . . . . . . . . . . Parts Recycled . | . . . . . . . . . . . . . . Recycled Matter . | . . . . . . . . . . . . . . Retrieved Matter . | . . . . . . . . . . . . . . Retrieved Components . | . . . . . . . . . . . . . . Parts Scanalyzed . | . . . . . . . . . . . . . . Part Schematics Acquired . | . . . . . . . . . . . . . . Parts Damaged . | . . . . . . . . . . . . . . Bothacking | -11 -10 -9 -8 -7 -6 -5 -4 -4 -4 -3 -2 -2 -1 ------------ Run | Scr Mat Mat Mat Fac Fac Fac Fac Upp Upp Res Res Tes Acc Used RIF Installer . | . . . . . . . . . . . . . . Robots Hacked . | . . . . . . . . . . . . . . Non-combat . | . . . . . . . . . . . . . . Combat . | . . . . . . . . . . . . . . Robot Hacks Applied . | . . . . . . . . . . . . . . Relay Couplers Released . | . . . . . . . . . . . . . . Robots Rewired . | . . . . . . . . . . . . . . Allies Hacked . | . . . . . . . . . . . . . . Hacks Repelled . | . . . . . . . . . . . . . . Allies | -11 -10 -9 -8 -7 -6 -5 -4 -4 -4 -3 -2 -2 -1 -------- Run | Scr Mat Mat Mat Fac Fac Fac Fac Upp Upp Res Res Tes Acc Total Allies . | . . . . . . . . . . . . . . Largest Group . | . . . . . . . . . . . . . . Highest-Rated Group . | . . . . . . . . . . . . . . Highest-Rated Ally . | . . . . . . . . . . . . . . Total Orders . | . . . . . . . . . . . . . . Ally Attacks . | . . . . . . . . . . . . . . Total Damage . | . . . . . . . . . . . . . . Kills . | . . . . . . . . . . . . . . Allies Corrupted . | . . . . . . . . . . . . . . Allies Melted . | . . . . . . . . . . . . . . Intel | -11 -10 -9 -8 -7 -6 -5 -4 -4 -4 -3 -2 -2 -1 ------- Run | Scr Mat Mat Mat Fac Fac Fac Fac Upp Upp Res Res Tes Acc Robot Analysis Total 1 | . . 1 . . . . . . . . . . . Derelict Logs Recovered 1 | . . . . . . . . 1 . . . . . Drone Launches . | . . . . . . . . . . . . . . Drone Recoveries . | . . . . . . . . . . . . . . Decoded 0b10 Intel 16 | . . . . . . . . . . 2 3 2 9 Items 16 | . . . . . . . . . . 2 3 2 9 Exploration | -11 -10 -9 -8 -7 -6 -5 -4 -4 -4 -3 -2 -2 -1 ------------- Run | Scr Mat Mat Mat Fac Fac Fac Fac Upp Upp Res Res Tes Acc Turns Passed 1608 | 21 34 65 121 116 81 19 296 86 63 55 165 57 429 Spaces Moved 4111 | 29 68 126 293 342 238 60 740 271 153 179 445 144 1023 Core 280 | 29 68 126 36 . . . . . . . . . 21 Treads . | . . . . . . . . . . . . . . Legs . | . . . . . . . . . . . . . . Wheels . | . . . . . . . . . . . . . . Hover . | . . . . . . . . . . . . . . Flight 3831 | . . . 257 342 238 60 740 271 153 179 445 144 1002 Fastest Speed 21 | 50 50 50 32 29 29 29 27 27 27 27 21 28 25 Average Speed 32 | 50 50 50 34 30 29 29 31 27 27 27 27 34 34 Slowest Speed 103 | 50 50 50 50 34 30 35 40 27 27 27 40 40 103 Overloaded Moves . | . . . . . . . . . . . . . . Propulsion Burnouts . | . . . . . . . . . . . . . . Robots Hopped 86 | . . . 16 3 1 1 14 . . . 15 . 36 Cave-ins Triggered . | . . . . . . . . . . . . . . Exploration Rate (%) 20 | 3 19 17 46 16 13 3 27 55 18 10 19 14 30 Regions Visited 13 Branch Regions 3 Pre-discovered Areas . | . . . . . . . . . . . . . . Known Exits Taken 8 | . . . . . 1 1 1 1 1 1 1 1 . Unknown Exits Taken 5 | 1 1 1 1 1 . . . . . . . . . Scrap Searched 2 | . . . . . . . . 2 . . . . . Spaces Dug 16 | . . . . . . . 1 3 . 1 8 . 3 Terrain Destroyed 37 | . . . . . . . 1 3 . 1 26 . 6 Melee 16 | . . . . . . . 1 3 . 1 8 . 3 Projectile . | . . . . . . . . . . . . . . AOE 21 | . . . . . . . . . . . 18 . 3 Terrain Rammed . | . . . . . . . . . . . . . . Walls Destroyed . | . . . . . . . . . . . . . . Machines Disabled . | . . . . . . . . . . . . . . Actions | -11 -10 -9 -8 -7 -6 -5 -4 -4 -4 -3 -2 -2 -1 --------- Run | Scr Mat Mat Mat Fac Fac Fac Fac Upp Upp Res Res Tes Acc Total 4237 | 34 67 126 295 346 245 60 787 276 173 182 450 150 1046 Wait 91 | . . . . . . 2 48 . 21 2 . 3 15 Move 3943 | 28 67 125 265 335 235 58 712 270 152 178 417 143 958 Hop 69 | . . . 11 3 1 . 13 . . . 12 . 29 Pick Up 23 | 4 . . 7 3 2 . 5 1 . . . . 1 Fast Attach 31 | 2 . 1 6 1 4 . 4 1 . 1 2 2 7 Attach 21 | . . . 3 3 2 . 3 1 . . 4 . 5 Detach 8 | . . . . . . . . . . . 3 1 4 Swap . | . . . . . . . . . . . . . . Drop 9 | . . . 3 . 1 . 1 . . . . 1 3 Fire 7 | . . . . 1 . . . . . . 3 . 3 Melee 23 | . . . . . . . 1 3 . 1 9 . 9 Ram . | . . . . . . . . . . . . . . Kick . | . . . . . . . . . . . . . . Crush . | . . . . . . . . . . . . . . Escape Stasis 12 | . . . . . . . . . . . . . 12 Rewire . | . . . . . . . . . . . . . . Trap . | . . . . . . . . . . . . . . Miscellaneous . | . . . . . . . . . . . . . . Route ------- -11/Scrapyard -10/Materials -9/Materials (discovered 2 exits: *Mat / Min) -8/Materials -7/Factory -6/Factory -5/Factory -4/Factory (discovered 2 exits: *Upp / [*Ext]) -4/Upper Caves -4/Upper Caves -3/Research -2/Research -2/Testing -1/Access (discovered 1 exit: Sur) History --------- Turn | Location | Event 9 | -11/Scrapyard | Discovered new exit (range 16) 22 | -11/Scrapyard | Entered Materials 55 | -10/Materials | Discovered new exit (range 4) 56 | -10/Materials | Entered another Materials area 56 | -9/Materials | Evolved 2 slots: Propulsion x1, Utility x1 60 | -9/Materials | Identified exit to Mines 118 | -9/Materials | Discovered new exit (range 8) 121 | -9/Materials | Entered another Materials area 121 | -8/Materials | Evolved 2 slots: Propulsion x1, Utility x1 236 | -8/Materials | Discovered new exit (range 18) 242 | -8/Materials | Entered Factory 242 | -7/Factory | Evolved 2 slots: Propulsion x1, Utility x1 264 | -7/Factory | Lost 3 parts (1p2w) 353 | -7/Factory | Discovered new exit (range 18) 358 | -7/Factory | Entered another Factory area 358 | -6/Factory | Evolved 2 slots: Utility x2 426 | -6/Factory | Spotted B-75 Beast 434 | -6/Factory | Discovered new exit (range 17) 438 | -6/Factory | Identified exit to Factory 439 | -6/Factory | Entered another Factory area 439 | -5/Factory | Evolved 2 slots: Utility x2 451 | -5/Factory | Discovered new exit (range 13) 455 | -5/Factory | Identified exit to Factory 458 | -5/Factory | Entered another Factory area 458 | -4/Factory | Evolved 2 slots: Power x1, Utility x1 486 | -4/Factory | Lost 5 parts (1p2n1u1w) 660 | -4/Factory | Discovered new exit (range 13) 751 | -4/Factory | Discovered new exit (range 11) 754 | -4/Factory | Identified exit to Upper Caves 754 | -4/Factory | Entered Upper Caves 818 | -4/Upper Caves | Learned Research emergency access door positions 833 | -4/Upper Caves | Discovered new exit (range 8) 835 | -4/Upper Caves | Identified exit to Upper Caves 840 | -4/Upper Caves | Entered another Upper Caves area 901 | -4/Upper Caves | Discovered new exit (range 7) 902 | -4/Upper Caves | Identified exit to Research 903 | -4/Upper Caves | Entered Research 903 | -3/Research | Evolved 2 slots: Propulsion x1, Utility x1 957 | -3/Research | Discovered new exit (range 5) 958 | -3/Research | Identified exit to Research 958 | -3/Research | Entered another Research area 958 | -2/Research | Evolved 2 slots: Utility x2 995 | -2/Research | Build established: Sprinter 1120 | -2/Research | Discovered new exit (range 6) 1122 | -2/Research | Identified exit to Testing 1123 | -2/Research | Entered Testing 1150 | -2/Testing | Lost 3 parts (1p1n1u) 1160 | -2/Testing | Spotted Alpha 7 1177 | -2/Testing | Discovered new exit (range 12) 1180 | -2/Testing | Identified exit to Access 1180 | -2/Testing | Entered Access 1180 | -1/Access | Evolved 2 slots: Propulsion x1, Utility x1 1323 | -1/Access | Spotted B-99 Colossus 1372 | -1/Access | Found Launcher Loader 1375 | -1/Access | Lost 6 parts (1p3n2u) 1508 | -1/Access | Identified exit to Surface 1570 | -1/Access | Build established: Mutant 1586 | -1/Access | Core integrity fell below 50% 1602 | -1/Access | Spotted B-99 Colossus 1606 | -1/Access | Core integrity fell below 20% 1609 | -1/Access | Destroyed by B-99 Colossus with Linear Accelerator Last Messages --------------- 01595_ Imp. VTOL Module destroyed. 01595_ Destroyed Xenon Bombardment Thruster. 01595_ S-43 Plague destroyed. 01596_ K-01 Serf collects debris. 01597_ U-05 Engineer lays Concrete. 01597_ S-43 Plague destroyed. 01598_ U-05 Engineer lays Concrete. 01599_ Destroyed Wheel. 01599_ K-01 Serf destroyed. 01599_ Destroyed Wheel. 01600_ Hvy. Missile Launcher destroyed. 01600_ ALERT: Construction progress impeded, dispatching reinforcements to local area. 01602_ Knocked back. 01602_ Slug penetrates Wall. 01605_ W-44 Eye sends out distress signal. 01605_ Knocked back. 01605_ Penetrated by Slug. 01605_ Slug penetrates Wall. 01606_ Penetrated by Slug. Map ----- +----------------------------------------------------+ | ???????!?!??????????????# / | | ????????????????????????# # | | ###########????????????????????# | | #????????????????????# ###+# | | #????????????????????# #???? | | #?????????????????#### #???? | | #??????????######## #???? | | ############ #???? | | + #???? | | ###+############ #???? | | "# #?????????# #???? | | "# #???????# "" #???? | | "# #???????# "" #???? | | #???????### "Y ??? | | #?????????# "" ! "" #?? | | #?????????# "" "" #?? | | #?????????# """""" ??? | | #?????????# """"""u ???? | | ##???????### "" R ????? | | #????????? "" R ?????? | | #??????????# ????????? | | #??????????# ??????????? | | #??????????# #???????????? | | #????????### =% [="" #???????????? | | #????????# k s!= %"" ?????????????? | | ######+### [! =%@ ["""""" ??????????????? | | ] p [! * """""" ?????????? | | "" ????????? | | kp "" #???????? | | w #???????? | | h #???????? | | ##########/### #???????? | | #??????? # BB #???????? | | ?????? #### ### #####BB ???????? | | ???? #??###?####???? k ???????? | | ??"" ! #?????????????? ???????? | | ?#"T #?????????????? ????????? | | ?#"" #?????????????? ????????? | | ?#"" """""#??????????????? k ?????????? | | ?# """""#??????????????? ?????????? | | ?# """""#??????????????? !!?????????? | | ?# """""#??????????????? !??????????? | | ?# ?????????????????????? ???????????? | | ?# ?????????????????????? #??????????????? | | ?# ??????????????????????????????????????????? | | ?#####???????????????????????????????????????????? | | ?????????????????????????????????????????????????? | | ?????????????????????????????????????????????????? | | ?????????????????????????????????????????????????? | | ?????????????????????????????????????????????????? | +----------------------------------------------------+ Best States ------------- Heat Dissipation 52 Energy Generation 41 Energy Capacity 415 Matter Stores 300 Matter Capacity 300 Sight Range 18 Robot Scan Range 16 Terrain Scan Density 410 Armor Coverage 150 Propulsion Shielding 90 Evasion (%) 65 Defensive Hacking 12 Item Schematics ----------------- None Robot Schematics ------------------ None Fabricated ------------ Nothing Alien Tech Used ----------------- None Achievements -------------- None Challenges ------------ None Game ------ Seed GatlingTransdimensionalStorm Manual? 0 Play Time 00:40:43 Cumulative 268.9 hours Start 2020.09.19 @ 13:30:03 End 2020.09.19 @ 14:08:57 Sessions 1 Manual Loads 0 Difficulty Rogue Special Mode None Game No. 378 Rogue 378 Adventurer 0 Explorer 0 Win Type - Total 28 Types 19/0/6/3/0/0/0/0/0 Lore% 84 Gallery% 80 Achievement% 48 Wizard Run 0 Options --------- ASCII 0 Keyboard 1 Movement Numpad Keybinds 0 Fullscreen 1 Font 24/Smallcaps Map View 76x50 Tactical HUD 1 Map Filters NONE Filters NONE Steam 1 RUN: c86acf60-304c-4182-acf1-1126c7d642ce